fUST/lending_fUST_20250901
["ID","MTS","AMOUNT","RATE_DAILY","PERIOD"]
[382648406,1756695032823,-1008.99180693,0.00016024,2]
[382648409,1756695032834,-151.0,0.00016024,2]
[382648412,1756695032843,-211.66780276,0.00016024,2]
[382648415,1756695032852,-151.0,0.00016024,2]
[382648418,1756695032861,-151.0,0.00016024,2]
[382648422,1756695032872,-953.06477446,0.00016024,2]
[382648428,1756695032899,-1604.59714064,0.00016024,2]
[382648816,1756695039380,-3576.34701165,0.00016024,2]
[382648817,1756695039403,-1065.5334853,0.00016024,2]
[382648818,1756695039414,-151.0,0.00016024,2]
[382648819,1756695039424,-151.0,0.00016024,2]
[382648820,1756695039433,-151.0,0.00016024,2]
[382648821,1756695039443,-151.0,0.00016024,2]
[382648822,1756695039452,-151.0,0.00016024,2]
[382648823,1756695039463,-151.0,0.00016024,2]
[382648824,1756695039473,-151.0,0.00016024,2]
[382648825,1756695039682,-156.44616438,0.00016024,2]
[382648826,1756695039692,-500.0,0.00016024,2]
[382648827,1756695039702,-500.0,0.00016024,2]
[382648828,1756695039712,-500.0,0.00016024,2]
[382648829,1756695039722,-500.0,0.00016024,2]
[382648830,1756695039732,-500.0,0.00016024,2]
[382648831,1756695039743,-500.0,0.00016024,2]
[382648832,1756695039752,-457.19693535,0.00016024,2]
[382648833,1756695039762,-518.08,0.00016028,2]
[382648834,1756695039771,-500.0,0.00016028,2]
[382648835,1756695039781,-480.0,0.00016028,2]
[382648836,1756695039793,-480.0,0.00016028,2]
[382648837,1756695039803,-879.19,0.00016028,2]
[382648838,1756695039812,-1256.84,0.00016028,2]
[382648839,1756695039822,-480.0,0.00016028,2]
[382648840,1756695039833,-480.0,0.00016028,2]
[382648841,1756695039842,-480.0,0.00016029,2]
[382648842,1756695039851,-822.99,0.00016029,2]
[382648843,1756695039861,-480.0,0.00016029,2]
[382648844,1756695039871,-480.0,0.00016029,2]
[382648845,1756695039881,-480.0,0.00016029,2]
[382648846,1756695039891,-996.18,0.00016029,2]
[382648847,1756695039901,-480.0,0.00016029,2]
[382648848,1756695039910,-483.29225201,0.00016029,2]
[382648849,1756695039920,-480.0,0.00016029,2]
[382648850,1756695039930,-480.0,0.00016029,2]
[382648851,1756695039939,-480.0,0.00016029,2]
[382648852,1756695039948,-483.4730293,0.00016029,2]
[382648853,1756695039958,-481.7,0.00016029,2]
[382648854,1756695039967,-480.0,0.00016029,2]
[382648855,1756695039977,-480.0,0.00016029,2]
[382648856,1756695039986,-715.97,0.00016029,2]
[382648857,1756695039996,-480.0,0.00016029,2]
[382648858,1756695040007,-480.0,0.00016029,2]
[382648859,1756695040017,-480.0,0.00016029,2]
[382648860,1756695040026,-480.0,0.00016029,2]
[382648861,1756695040035,-480.0,0.00016029,2]
[382648862,1756695040045,-482.04523754,0.00016029,2]
[382648863,1756695040054,-480.0,0.00016029,2]
[382648864,1756695040064,-480.0,0.00016029,2]
[382648865,1756695040074,-2148.87,0.00016029,2]
[382648866,1756695040084,-480.0,0.00016029,2]
[382648867,1756695040093,-521.76,0.00016029,2]
[382648868,1756695040102,-480.0,0.00016029,2]
[382648869,1756695040112,-480.0,0.00016029,2]
[382648870,1756695040123,-494.49,0.00016029,2]
[382648871,1756695040134,-544.57,0.00016029,2]
[382648872,1756695040143,-480.0,0.00016029,2]
[382648873,1756695040152,-480.0,0.00016029,2]
[382648874,1756695040161,-591.21,0.00016029,2]
[382648875,1756695040171,-1202.83,0.00016029,2]
[382648876,1756695040180,-1896.66,0.00016029,2]
[382648877,1756695040190,-480.0,0.00016029,2]
[382648878,1756695040199,-480.0,0.00016029,2]
[382648879,1756695040208,-490.57,0.00016029,2]
[382648880,1756695040218,-480.0,0.00016029,2]
[382648881,1756695040227,-1829.13,0.00016029,2]
[382648882,1756695040237,-615.88,0.00016029,2]
[382648883,1756695040249,-482.49579189,0.00016029,2]
[382648884,1756695040259,-480.0,0.00016029,2]
[382648885,1756695040269,-480.0,0.00016029,2]
[382648886,1756695040278,-480.0,0.00016029,2]
[382648887,1756695040287,-480.0,0.00016029,2]
[382648888,1756695040297,-520.15,0.00016029,2]
[382648889,1756695040307,-480.0,0.00016029,2]
[382648890,1756695040317,-929.8576274,0.00016029,2]
[382648891,1756695040327,-929.8576274,0.00016029,2]
[382648892,1756695040337,-929.8576274,0.00016029,2]
[382648893,1756695040347,-929.8576274,0.00016029,2]
[382648894,1756695040357,-929.8576274,0.00016029,2]
[382648895,1756695040367,-929.8576274,0.00016029,2]
[382648896,1756695040378,-929.8576274,0.00016029,2]
[382648897,1756695040388,-929.8576274,0.00016029,2]
[382648898,1756695040398,-929.8576274,0.00016029,2]
[382648899,1756695040407,-929.8576274,0.00016029,2]
[382648900,1756695040418,-929.8576274,0.00016029,2]
[382648901,1756695040428,-929.8576274,0.00016029,2]
[382648902,1756695040438,-929.8576274,0.00016029,2]
[382648903,1756695040448,-929.8576274,0.00016029,2]
[382648904,1756695040457,-929.8576274,0.00016029,2]
[382648905,1756695040467,-929.8576274,0.00016029,2]
[382648906,1756695040477,-929.8576274,0.00016029,2]
[382648907,1756695040486,-929.8576274,0.00016029,2]
[382648908,1756695040498,-929.8576274,0.00016029,2]
[382648909,1756695040507,-960.85288166,0.00016029,2]
[382648910,1756695040518,-960.85288166,0.00016029,2]
[382648911,1756695040527,-960.85288166,0.00016029,2]
[382648912,1756695040536,-960.85288166,0.00016029,2]
[382648913,1756695040546,-960.85288166,0.00016029,2]
[382648914,1756695040555,-960.85288166,0.00016029,2]
[382648915,1756695040566,-960.85288166,0.00016029,2]
[382648916,1756695040575,-960.85288166,0.00016029,2]
[382648917,1756695040584,-960.85288166,0.00016029,2]
[382648918,1756695040594,-600.57152664,0.0001603,2]
[382648919,1756695040603,-480.0,0.0001603,2]
[382648920,1756695040612,-480.0,0.0001603,2]
[382648921,1756695040622,-480.0,0.0001603,2]
[382648922,1756695040632,-480.0,0.0001603,2]
[382648923,1756695040641,-1209.57,0.0001603,2]
[382648924,1756695040651,-520.37494387,0.0001603,2]
[382648925,1756695040660,-480.0,0.0001603,2]
[382648926,1756695040670,-480.0,0.0001603,2]
[382648927,1756695040679,-484.92,0.0001603,2]
[382648928,1756695040689,-1065.67,0.0001603,2]
[382648929,1756695040698,-691.79,0.0001603,2]
[382648930,1756695040707,-480.0,0.0001603,2]
[382648931,1756695040716,-480.0,0.0001603,2]
[382648932,1756695040726,-480.0,0.0001603,2]
[382648933,1756695040735,-480.0,0.0001603,2]
[382648934,1756695040747,-480.0,0.0001603,2]
[382648935,1756695040756,-503.08,0.0001603,2]
[382648936,1756695040766,-665.25,0.0001603,2]
[382648937,1756695040775,-480.0,0.0001603,2]
[382648938,1756695040788,-480.0,0.0001603,2]
[382648939,1756695040797,-795.16,0.0001603,2]
[382648940,1756695040807,-921.36,0.0001603,2]
[382648941,1756695040816,-824.77,0.0001603,2]
[382648942,1756695040827,-523.31,0.0001603,2]
[382648943,1756695040836,-758.68,0.0001603,2]
[382648944,1756695040846,-587.64,0.0001603,2]
[382648945,1756695040855,-988.65,0.0001603,2]
[382648946,1756695040865,-480.0,0.0001603,2]
[382648947,1756695040876,-480.0,0.0001603,2]
[382648948,1756695040886,-480.0,0.0001603,2]
[382648949,1756695040895,-609.32,0.0001603,2]
[382648950,1756695040905,-773.07,0.0001603,2]
[382648951,1756695040915,-480.0,0.0001603,2]
[382648952,1756695040924,-480.0,0.0001603,2]
[382648953,1756695040935,-480.0,0.0001603,2]
[382648954,1756695040945,-213.91847732,0.0001603,2]
[382648955,1756695040955,-653.79,0.0001603,2]
[382648956,1756695040964,-910.8,0.0001603,2]
[382648957,1756695040974,-480.0,0.0001603,2]
[382648958,1756695040984,-752.76,0.0001603,2]
[382648959,1756695040997,-674.2,0.0001603,2]
[382648960,1756695041007,-482.62361852,0.0001603,2]
[382648961,1756695041017,-527.50644784,0.0001603,2]
[382648962,1756695041026,-757.06,0.0001603,2]
[382648963,1756695041036,-480.0,0.0001603,2]
[382648964,1756695041045,-480.0,0.0001603,2]
[382648965,1756695041054,-480.0,0.0001603,2]
[382648966,1756695041063,-480.0,0.0001603,2]
[382648967,1756695041073,-480.0,0.0001603,2]
[382648968,1756695041082,-286.71208656,0.0001603,2]
[382648969,1756695041092,-853.17,0.0001603,2]
[382648970,1756695041101,-771.16,0.0001603,2]
[382648971,1756695041110,-1031.8,0.0001603,2]
[382648972,1756695041119,-480.0,0.0001603,2]
[382648973,1756695041129,-480.0,0.0001603,2]
[382648974,1756695041138,-683.56,0.0001603,2]
[382648975,1756695041148,-480.0,0.0001603,2]
[382648976,1756695041157,-480.0,0.00016031,2]
[382648977,1756695041167,-607.76,0.00016031,2]
[382648978,1756695041176,-3396.76,0.00016031,2]
[382648979,1756695041186,-4871.07,0.00016031,2]
[382648980,1756695041195,-1359.0,0.00016031,2]
[382648981,1756695041204,-1130.82,0.00016031,2]
[382648982,1756695041214,-480.0,0.00016031,2]
[382648983,1756695041223,-790.56,0.00016031,2]
[382648984,1756695041233,-629.56,0.00016031,2]
[382648985,1756695041246,-4734.37,0.00016031,2]
[382648986,1756695041255,-4645.01,0.00016031,2]
[382648987,1756695041265,-505.33087012,0.00016031,2]
[382648988,1756695041274,-1159.54,0.00016031,2]
[382648989,1756695041283,-1904.17,0.00016031,2]
[382648990,1756695041293,-567.47,0.00016031,2]
[382648991,1756695041302,-537.34,0.00016031,2]
[382648992,1756695041311,-1144.43,0.00016031,2]
[382648993,1756695041321,-1338.86,0.00016031,2]
[382648994,1756695041330,-480.0,0.00016031,2]
[382648995,1756695041340,-1901.29,0.00016031,2]
[382648996,1756695041349,-3068.97,0.00016031,2]
[382648997,1756695041358,-480.0,0.00016032,2]
[382648998,1756695041368,-480.0,0.00016032,2]
[382648999,1756695041378,-480.0,0.00016032,2]
[382649000,1756695041596,-480.0,0.00016032,2]
[382649001,1756695041605,-480.0,0.00016032,2]
[382649002,1756695041615,-634.77,0.00016032,2]
[382649003,1756695041624,-405.62251689,0.00016032,2]
[382649004,1756695041633,-480.0,0.00016032,2]
[382649005,1756695041643,-480.0,0.00016032,2]
[382649006,1756695041652,-480.0,0.00016032,2]
[382649007,1756695041662,-480.0,0.00016032,2]
[382649008,1756695041671,-480.0,0.00016032,2]
[382649009,1756695041681,-480.0,0.00016032,2]
[382649010,1756695041690,-480.0,0.00016032,2]
[382649011,1756695041700,-480.0,0.00016032,2]
[382649012,1756695041713,-480.0,0.00016032,2]
[382649013,1756695041727,-480.0,0.00016032,2]
[382649014,1756695041742,-480.0,0.00016032,2]
[382649015,1756695041755,-480.0,0.00016032,2]
[382649016,1756695041767,-847.34,0.00016032,2]
[382649017,1756695041779,-515.91,0.00016032,2]
[382649018,1756695041793,-617.30125764,0.00016032,2]
[382649019,1756695041805,-480.0,0.00016032,2]
[382649021,1756695041817,-480.0,0.00016032,2]
[382649023,1756695041829,-763.43,0.00016032,2]
[382649026,1756695041845,-480.0,0.00016032,2]
[382649028,1756695041857,-525.86,0.00016032,2]
[382649030,1756695041870,-480.0,0.00016032,2]
[382649032,1756695041883,-310.72329907,0.00016032,2]
[382649034,1756695041895,-480.0,0.00016032,2]
[382649036,1756695041906,-480.0,0.00016032,2]
[382649038,1756695041918,-1069.68,0.00016032,2]
[382649041,1756695041929,-480.0,0.00016032,2]
[382649043,1756695041939,-480.0,0.00016032,2]
[382649045,1756695041951,-480.0,0.00016032,2]
[382649047,1756695041963,-480.0,0.00016032,2]
[382649050,1756695041974,-480.0,0.00016032,2]
[382649052,1756695041986,-480.0,0.00016032,2]
[382649054,1756695041998,-1038.56,0.00016032,2]
[382649056,1756695042010,-480.0,0.00016032,2]
[382649059,1756695042021,-480.0,0.00016032,2]
[382649061,1756695042032,-480.0,0.00016032,2]
[382649063,1756695042044,-937.95,0.00016032,2]
[382649065,1756695042057,-731.64,0.00016032,2]
[382649068,1756695042069,-480.0,0.00016032,2]
[382649070,1756695042081,-480.0,0.00016032,2]
[382649072,1756695042095,-480.0,0.00016032,2]
[382649075,1756695042108,-1003.1,0.00016032,2]
[382649076,1756695042120,-480.0,0.00016032,2]
[382649077,1756695042132,-480.0,0.00016032,2]
[382649078,1756695042142,-480.0,0.00016032,2]
[382649079,1756695042152,-480.0,0.00016032,2]
[382649081,1756695042163,-929.76,0.00016032,2]
[382649082,1756695042174,-480.0,0.00016032,2]
[382649083,1756695042186,-480.0,0.00016032,2]
[382649084,1756695042199,-480.0,0.00016032,2]
[382649085,1756695042211,-480.0,0.00016032,2]
[382649086,1756695042221,-480.0,0.00016032,2]
[382649087,1756695042232,-300.32075337,0.00016032,2]
[382649088,1756695042244,-480.0,0.00016032,2]
[382649089,1756695042257,-918.54,0.00016032,2]
[382649091,1756695042268,-480.0,0.00016032,2]
[382649092,1756695042279,-480.0,0.00016032,2]
[382649093,1756695042289,-758.34,0.00016032,2]
[382649095,1756695042300,-480.0,0.00016032,2]
[382649098,1756695042312,-480.0,0.00016032,2]
[382649100,1756695042323,-480.0,0.00016032,2]
[382649103,1756695042334,-484.38474704,0.00016032,2]
[382649106,1756695042345,-480.0,0.00016032,2]
[382649109,1756695042357,-480.0,0.00016032,2]
[382649112,1756695042368,-480.0,0.00016032,2]
[382649114,1756695042379,-480.0,0.00016032,2]
[382649116,1756695042390,-480.0,0.00016032,2]
[382649119,1756695042401,-487.0,0.00016032,2]
[382649121,1756695042414,-480.0,0.00016032,2]
[382649123,1756695042425,-619.85714217,0.00016032,2]
[382649125,1756695042436,-480.0,0.00016032,2]
[382649127,1756695042447,-480.0,0.00016032,2]
[382649130,1756695042459,-480.0,0.00016032,2]
[382649132,1756695042471,-480.0,0.00016032,2]
[382649134,1756695042482,-480.0,0.00016032,2]
[382649136,1756695042493,-480.0,0.00016032,2]
[382649138,1756695042504,-904.84,0.00016032,2]
[382649140,1756695042515,-480.0,0.00016032,2]
[382649142,1756695042526,-480.0,0.00016032,2]
[382649144,1756695042537,-919.82,0.00016032,2]
[382649147,1756695042547,-480.0,0.00016032,2]
[382649149,1756695042559,-480.0,0.00016032,2]
[382649151,1756695042570,-607.62937422,0.00016032,2]
[382649153,1756695042581,-480.0,0.00016032,2]
[382649155,1756695042592,-480.0,0.00016032,2]
[382649158,1756695042604,-480.0,0.00016032,2]
[382649160,1756695042616,-480.0,0.00016032,2]
[382649162,1756695042628,-782.42,0.00016032,2]
[382649164,1756695042639,-480.0,0.00016032,2]
[382649166,1756695042650,-480.0,0.00016032,2]
[382649169,1756695042662,-480.0,0.00016032,2]
[382649171,1756695042673,-1041.72,0.00016032,2]
[382649173,1756695042685,-976.25,0.00016032,2]
[382649175,1756695042696,-480.0,0.00016032,2]
[382649177,1756695042707,-480.0,0.00016032,2]
[382649179,1756695042718,-1108.35,0.00016032,2]
[382649182,1756695042729,-480.0,0.00016032,2]
[382649184,1756695042741,-877.71,0.00016032,2]
[382649186,1756695042752,-480.0,0.00016032,2]
[382649188,1756695042763,-480.0,0.00016032,2]
[382649190,1756695042773,-1179.63,0.00016032,2]
[382649192,1756695042788,-684.08,0.00016032,2]
[382649194,1756695042801,-481.606264,0.00016032,2]
[382649196,1756695042812,-538.91,0.00016032,2]
[382649198,1756695042824,-480.0,0.00016032,2]
[382649199,1756695042835,-480.0,0.00016032,2]
[382649201,1756695042846,-502.01,0.00016032,2]
[382649204,1756695042857,-480.0,0.00016032,2]
[382649206,1756695042870,-480.0,0.00016032,2]
[382649208,1756695042881,-546.27,0.00016032,2]
[382649210,1756695042892,-1000.0,0.00016032,2]
[382649212,1756695042906,-480.0,0.00016032,2]
[382649214,1756695042917,-512.43914363,0.00016032,2]
[382649216,1756695042928,-480.0,0.00016032,2]
[382649219,1756695042939,-480.0,0.00016032,2]
[382649222,1756695042950,-480.0,0.00016032,2]
[382649225,1756695042961,-480.0,0.00016032,2]
[382649228,1756695042972,-646.11,0.00016032,2]
[382649231,1756695042983,-480.0,0.00016032,2]
[382649236,1756695042996,-480.0,0.00016032,2]
[382649240,1756695043008,-481.71332384,0.00016032,2]
[382649243,1756695043019,-480.0,0.00016032,2]
[382649246,1756695043030,-480.0,0.00016032,2]
[382649250,1756695043041,-1721.91,0.00016032,2]
[382649255,1756695043052,-500.0,0.00016032,2]
[382649259,1756695043064,-500.0,0.00016032,2]
[382649262,1756695043076,-500.0,0.00016032,2]
[382649266,1756695043086,-500.0,0.00016032,2]
[382649269,1756695043098,-500.0,0.00016032,2]
[382649271,1756695043110,-500.0,0.00016032,2]
[382649273,1756695043121,-480.0,0.00016032,2]
[382649276,1756695043132,-1044.46,0.00016032,2]
[382649278,1756695043144,-480.0,0.00016032,2]
[382649280,1756695043155,-480.0,0.00016032,2]
[382649282,1756695043167,-504.33,0.00016032,2]
[382649284,1756695043178,-480.0,0.00016032,2]
[382649286,1756695043188,-480.0,0.00016032,2]
[382649288,1756695043199,-481.62109571,0.00016032,2]
[382649290,1756695043211,-500.07,0.00016032,2]
[382649292,1756695043222,-480.0,0.00016032,2]
[382649294,1756695043233,-480.0,0.00016032,2]
[382649296,1756695043246,-480.0,0.00016032,2]
[382649299,1756695043257,-480.0,0.00016032,2]
[382649301,1756695043268,-480.0,0.00016032,2]
[382649303,1756695043279,-480.0,0.00016032,2]
[382649305,1756695043290,-480.0,0.00016032,2]
[382649307,1756695043301,-480.0,0.00016032,2]
[382649309,1756695043313,-480.0,0.00016032,2]
[382649311,1756695043324,-594.65,0.00016032,2]
[382649314,1756695043334,-480.0,0.00016032,2]
[382649316,1756695043347,-480.0,0.00016032,2]
[382649318,1756695043357,-480.0,0.00016032,2]
[382649320,1756695043369,-480.0,0.00016033,2]
[382649322,1756695043380,-252.0223145,0.00016033,2]
[382649324,1756695043391,-480.0,0.00016033,2]
[382649326,1756695043403,-480.0,0.00016033,2]
[382649329,1756695043415,-1175.91,0.00016033,2]
[382649331,1756695043427,-639.97,0.00016033,2]
[382649333,1756695043439,-548.31,0.00016033,2]
[382649335,1756695043450,-480.0,0.00016033,2]
[382649337,1756695043462,-821.63,0.00016033,2]
[382649339,1756695043474,-1077.37,0.00016033,2]
[382649341,1756695043485,-501.32,0.00016033,2]
[382649343,1756695043499,-614.81,0.00016033,2]
[382649345,1756695043509,-480.0,0.00016033,2]
[382649348,1756695043521,-400.0,0.00016033,2]
[382649350,1756695043533,-480.0,0.00016033,2]
[382649352,1756695043543,-480.0,0.00016033,2]
[382649354,1756695043554,-480.0,0.00016033,2]
[382649356,1756695043565,-670.86,0.00016033,2]
[382649358,1756695043576,-480.0,0.00016033,2]
[382649361,1756695043588,-480.0,0.00016033,2]
[382649363,1756695043598,-480.0,0.00016033,2]
[382649365,1756695043609,-916.7,0.00016033,2]
[382649367,1756695043621,-612.4,0.00016033,2]
[382649369,1756695043632,-480.0,0.00016033,2]
[382649371,1756695043643,-480.0,0.00016033,2]
[382649373,1756695043654,-480.0,0.00016033,2]
[382649376,1756695043666,-879.82,0.00016033,2]
[382649378,1756695043677,-480.0,0.00016033,2]
[382649380,1756695043687,-593.38,0.00016033,2]
[382649382,1756695043696,-480.0,0.00016033,2]
[382649384,1756695043706,-480.0,0.00016033,2]
[382649386,1756695043716,-886.04,0.00016033,2]
[382649388,1756695043726,-480.0,0.00016033,2]
[382649389,1756695043735,-1578.52,0.00016033,2]
[382649415,1756695043950,-480.0,0.00016033,2]
[382649419,1756695044017,-480.0,0.00016033,2]
[382649421,1756695044034,-480.0,0.00016033,2]
[382649423,1756695044044,-480.0,0.00016033,2]
[382649425,1756695044054,-480.0,0.00016033,2]
[382649427,1756695044063,-571.69,0.00016033,2]
[382649429,1756695044072,-480.0,0.00016033,2]
[382649431,1756695044082,-650.99,0.00016033,2]
[382649433,1756695044091,-480.0,0.00016033,2]
[382649435,1756695044101,-199.38711018,0.00016033,2]
[382649437,1756695044110,-510.39722966,0.00016033,2]
[382649439,1756695044119,-480.0,0.00016033,2]
[382649441,1756695044128,-480.0,0.00016033,2]
[382649443,1756695044138,-500.54240405,0.00016033,2]
[382649445,1756695044148,-761.37,0.00016033,2]
[382649447,1756695044158,-759.74,0.00016033,2]
[382649449,1756695044168,-37247.333431,0.00016034,2]
[382649451,1756695044177,-483.5667918,0.00016034,2]
[382649453,1756695044187,-1074.42,0.00016034,2]
[382649455,1756695044196,-480.0,0.00016034,2]
[382649457,1756695044205,-482.1141293,0.00016034,2]
[382649459,1756695044214,-480.0,0.00016034,2]
[382649461,1756695044223,-480.0,0.00016034,2]
[382649463,1756695044232,-480.0,0.00016034,2]
[382649465,1756695044243,-480.0,0.00016034,2]
[382649467,1756695044254,-480.0,0.00016034,2]
[382649469,1756695044264,-298.92234113,0.00016034,2]
[382649471,1756695044273,-503.32,0.00016034,2]
[382649473,1756695044283,-480.0,0.00016034,2]
[382649475,1756695044293,-1013.53,0.00016034,2]
[382649477,1756695044302,-480.0,0.00016034,2]
[382649479,1756695044312,-480.0,0.00016034,2]
[382649481,1756695044321,-481.86596231,0.00016034,2]
[382649483,1756695044331,-480.0,0.00016034,2]
[382649485,1756695044340,-1025.94,0.00016034,2]
[382649487,1756695044350,-993.87,0.00016034,2]
[382649489,1756695044359,-480.0,0.00016034,2]
[382649491,1756695044368,-480.0,0.00016034,2]
[382649492,1756695044377,-480.0,0.00016034,2]
[382649494,1756695044387,-480.0,0.00016034,2]
[382649496,1756695044396,-480.0,0.00016034,2]
[382649498,1756695044405,-480.0,0.00016034,2]
[382649500,1756695044415,-555.02,0.00016034,2]
[382649502,1756695044424,-508.74794958,0.00016034,2]
[382649504,1756695044434,-480.0,0.00016034,2]
[382649506,1756695044443,-480.0,0.00016034,2]
[382649508,1756695044452,-480.0,0.00016034,2]
[382649510,1756695044461,-480.0,0.00016034,2]
[382649512,1756695044471,-480.0,0.00016034,2]
[382649514,1756695044480,-480.0,0.00016034,2]
[382649516,1756695044489,-480.0,0.00016034,2]
[382649518,1756695044500,-597.03,0.00016034,2]
[382649520,1756695044511,-480.0,0.00016034,2]
[382649522,1756695044520,-480.0,0.00016034,2]
[382649524,1756695044529,-488.04670965,0.00016034,2]
[382649526,1756695044538,-516.29,0.00016034,2]
[382649528,1756695044547,-480.0,0.00016034,2]
[382649530,1756695044557,-484.09405176,0.00016034,2]
[382649532,1756695044566,-480.0,0.00016034,2]
[382649534,1756695044575,-480.0,0.00016034,2]
[382649536,1756695044585,-481.88062441,0.00016034,2]
[382649538,1756695044594,-481.71509124,0.00016034,2]
[382649540,1756695044604,-480.0,0.00016034,2]
[382649542,1756695044614,-1004.41169497,0.00016034,2]
[382649544,1756695044623,-481.4195146,0.00016034,2]
[382649546,1756695044633,-480.0,0.00016034,2]
[382649548,1756695044642,-480.0,0.00016034,2]
[382649550,1756695044652,-481.31194408,0.00016034,2]
[382649552,1756695044661,-480.0,0.00016034,2]
[382649554,1756695044670,-480.0,0.00016034,2]
[382649555,1756695044679,-480.0,0.00016034,2]
[382649556,1756695044688,-480.0,0.00016034,2]
[382649557,1756695044698,-480.0,0.00016034,2]
[382649558,1756695044709,-480.0,0.00016034,2]
[382649559,1756695044718,-370.47807398,0.00016034,2]
[382649560,1756695044729,-647.84,0.00016034,2]
[382649561,1756695044738,-480.0,0.00016034,2]
[382649562,1756695044749,-480.0,0.00016034,2]
[382649563,1756695044759,-480.0,0.00016034,2]
[382649564,1756695044769,-480.0,0.00016034,2]
[382649565,1756695044779,-519.82,0.00016034,2]
[382649566,1756695044790,-480.0,0.00016034,2]
[382649567,1756695044803,-480.0,0.00016034,2]
[382649568,1756695044812,-481.5968499,0.00016034,2]
[382649569,1756695044823,-480.0,0.00016034,2]
[382649570,1756695044834,-480.0,0.00016034,2]
[382649571,1756695044843,-480.0,0.00016034,2]
[382649572,1756695044853,-480.0,0.00016034,2]
[382649573,1756695044862,-774.43,0.00016034,2]
[382649574,1756695044872,-882.46,0.00016034,2]
[382649575,1756695044882,-480.0,0.00016034,2]
[382649576,1756695044891,-480.0,0.00016034,2]
[382649577,1756695044901,-1016.29,0.00016034,2]
[382649578,1756695044911,-480.0,0.00016034,2]
[382649579,1756695044920,-481.90123479,0.00016034,2]
[382649580,1756695044930,-481.15084301,0.00016034,2]
[382649581,1756695044939,-480.97877897,0.00016034,2]
[382649582,1756695044948,-500.0,0.00016034,2]
[382649583,1756695044958,-483.59585091,0.00016034,2]
[382649584,1756695044968,-480.0,0.00016034,2]
[382649585,1756695044977,-480.0,0.00016034,2]
[382649586,1756695044987,-406.80765003,0.00016034,2]
[382649587,1756695044997,-480.0,0.00016034,2]
[382649588,1756695045007,-480.95202241,0.00016034,2]
[382649589,1756695045016,-480.0,0.00016034,2]
[382649590,1756695045025,-480.0,0.00016034,2]
[382649591,1756695045035,-480.0,0.00016034,2]
[382649592,1756695045044,-481.8628852,0.00016034,2]
[382649593,1756695045053,-480.0,0.00016034,2]
[382649594,1756695045063,-480.0,0.00016034,2]
[382649595,1756695045072,-480.0,0.00016034,2]
[382649596,1756695045081,-1003.5,0.00016034,2]
[382649597,1756695045091,-480.0,0.00016034,2]
[382649598,1756695045100,-480.0,0.00016034,2]
[382649599,1756695045110,-559.76,0.00016034,2]
[382649601,1756695045119,-480.0,0.00016034,2]
[382649603,1756695045129,-480.0,0.00016034,2]
[382649605,1756695045140,-482.21072514,0.00016034,2]
[382649606,1756695045150,-480.0,0.00016034,2]
[382649608,1756695045159,-694.64,0.00016034,2]